bitfinex-derivatives/quotes_BTCF0:USTF0_20250828
["timestamp","ask_amount","ask_price","bid_price","bid_amount"]
[1756404600963,0.05898069,112370.0,112360.0,0.0889929]
[1756404601167,0.89970069,112370.0,112360.0,0.66771243]
[1756404602466,0.05898069,112370.0,112360.0,0.66771243]
[1756404602770,0.90058069,112370.0,112360.0,0.66771243]
[1756404604668,0.05898069,112370.0,112360.0,0.66771243]
[1756404604874,0.89990069,112370.0,112360.0,0.66771243]
[1756404605068,0.90090069,112370.0,112360.0,0.66771243]
[1756404605269,0.05998069,112370.0,112360.0,0.66771243]
[1756404605469,0.90078069,112370.0,112360.0,0.66771243]
[1756404606171,0.89978069,112370.0,112360.0,0.66771243]
[1756404606764,0.90178069,112370.0,112360.0,0.66771243]
[1756404607272,0.89978069,112370.0,112360.0,0.66771243]
[1756404609165,0.89910069,112370.0,112360.0,0.1285229]
[1756404609365,0.89910069,112370.0,112360.0,0.66771243]
[1756404609671,0.05898069,112370.0,112360.0,0.66771243]
[1756404609872,0.85943069,112370.0,112360.0,0.66771243]
[1756404610074,0.01963069,112370.0,112360.0,1.20690196]
[1756404610268,0.01963069,112370.0,112360.0,0.66771243]
[1756404611174,0.03558069,112370.0,112360.0,0.66771243]
[1756404611573,0.03558069,112370.0,112360.0,0.1285229]
[1756404611777,0.05898069,112370.0,112360.0,0.66771243]
[1756404615286,0.05898069,112370.0,112360.0,0.6076835]
[1756404617389,0.14796569,112370.0,112360.0,0.1285229]
[1756404617585,0.14796569,112370.0,112360.0,0.1050129]
[1756404617781,0.1049429,112360.0,112350.0,0.62571953]
[1756404617988,0.9673829,112360.0,112350.0,0.14655893]
[1756404618583,0.87839,112360.0,112350.0,0.14655893]
[1756404618778,0.1283508,112350.0,112340.0,0.1285323]
[1756404618990,0.1283508,112350.0,112340.0,0.1050223]
[1756404619492,0.1283508,112350.0,112340.0,0.0890023]
[1756404619791,0.8575114,112350.0,112340.0,0.0890023]
[1756404620198,0.1283587,112340.0,112330.0,0.0890114]
[1756404620389,0.14806733,112340.0,112330.0,0.1050314]
[1756404620590,0.98706733,112340.0,112330.0,0.1285414]
[1756404620791,0.89805863,112340.0,112330.0,0.607702]
[1756404621889,0.90005863,112340.0,112330.0,0.607702]
[1756404622095,0.90105863,112340.0,112330.0,0.607702]
[1756404622600,0.99006743,112340.0,112330.0,0.607702]
[1756404623601,0.15106743,112340.0,112330.0,0.607702]
[1756404624098,0.78002743,112340.0,112330.0,0.607702]
[1756404625899,0.98906743,112340.0,112330.0,0.607702]
[1756404626501,0.98906743,112340.0,112330.0,0.1050314]
[1756404626894,0.98906743,112340.0,112330.0,0.1285414]
[1756404627096,0.98906743,112340.0,112330.0,0.607702]
[1756404628200,0.15106743,112340.0,112330.0,0.607702]
[1756404628400,0.98858743,112340.0,112330.0,0.607702]
[1756404629298,0.15106743,112340.0,112330.0,0.607702]
[1756404629499,0.98834743,112340.0,112330.0,0.607702]
[1756404629705,0.15106743,112340.0,112330.0,0.607702]
[1756404629907,0.98834743,112340.0,112330.0,0.607702]
[1756404630098,0.15106743,112340.0,112330.0,0.607702]
[1756404630300,0.06205863,112340.0,112330.0,0.607702]
[1756404630500,0.89933863,112340.0,112330.0,0.62546589]
[1756404631405,0.89633863,112340.0,112330.0,0.62546589]
[1756404632106,0.98534743,112340.0,112330.0,0.62546589]
[1756404632306,0.98538743,112340.0,112330.0,0.62546589]
[1756404632694,0.15006743,112340.0,112330.0,0.62546589]
[1756404632901,0.74413863,112340.0,112330.0,0.62546589]
[1756404633606,0.83314743,112340.0,112330.0,0.62546589]
[1756404633906,0.83414743,112340.0,112330.0,0.62546589]
[1756404634109,0.98838743,112340.0,112330.0,0.14630529]
[1756404634498,0.98838743,112340.0,112330.0,0.62546589]
[1756404635208,0.89937863,112340.0,112330.0,0.62546589]
[1756404635512,0.06205863,112340.0,112330.0,0.62546589]
[1756404635699,0.06205863,112340.0,112330.0,0.87546589]
[1756404635700,0.85627,112340.0,112330.0,0.87546589]
[1756404636106,0.003,112340.0,112330.0,0.87546589]
[1756404637402,0.002,112340.0,112330.0,0.87546589]
[1756404638311,0.897435,112350.0,112340.0,0.1297087]
[1756404638506,0.897435,112350.0,112340.0,0.6088693]
[1756404640204,0.897435,112350.0,112340.0,0.6176364]
[1756404640403,0.897435,112350.0,112340.0,0.6088693]
[1756404640614,0.9864358,112350.0,112340.0,0.6088693]
[1756404641712,0.9874358,112350.0,112340.0,0.6088693]
[1756404642212,0.9894358,112350.0,112340.0,0.6088693]
[1756404648518,0.0890092,112340.0,112330.0,0.00051]
[1756404648714,0.8587198,112340.0,112330.0,0.00051]
[1756404649119,0.3795592,112340.0,112330.0,0.00051]
[1756404649321,0.8587198,112340.0,112330.0,0.00051]
[1756404651724,0.3795592,112340.0,112330.0,0.00051]
[1756404651926,0.8587198,112340.0,112330.0,0.00051]
[1756404652524,0.8617198,112340.0,112330.0,0.00051]
[1756404653228,0.6117198,112340.0,112330.0,0.00051]
[1756404654126,0.7417198,112340.0,112330.0,0.00051]
[1756404655829,0.2625592,112340.0,112330.0,0.00051]
[1756404656029,0.7417198,112340.0,112330.0,0.00051]
[1756404658327,1.0055198,112340.0,112330.0,0.00051]
[1756404661534,0.5263592,112340.0,112330.0,0.00051]
[1756404661730,1.0055198,112340.0,112330.0,0.00051]
[1756404661930,0.1280472,112330.0,112320.0,0.05894539]
[1756404662234,1.4444078,112330.0,112320.0,0.05894539]
[1756404663526,1.4444078,112330.0,112320.0,0.03453539]
[1756404663927,1.4444078,112330.0,112320.0,0.03505539]
[1756404664829,1.4444078,112330.0,112320.0,0.01876539]
[1756404665740,1.4444078,112330.0,112320.0,0.00052]
[1756404667336,0.6072078,112330.0,112320.0,0.00052]
[1756404667536,1.4443278,112330.0,112320.0,0.00052]
[1756404669237,1.4442878,112330.0,112320.0,0.00052]
[1756404669931,1.51475167,112330.0,112320.0,0.00052]
[1756404670627,0.67767167,112330.0,112320.0,0.00052]
[1756404670832,1.51475167,112330.0,112320.0,0.00052]
[1756404671238,0.67767167,112330.0,112320.0,0.00052]
[1756404671433,1.51471167,112330.0,112320.0,0.01704]
[1756404671937,1.03555107,112330.0,112320.0,0.01704]
[1756404672130,1.51471167,112330.0,112320.0,0.01704]
[1756404673339,1.51471167,112330.0,112320.0,0.00052]
[1756404673739,1.51471167,112330.0,112320.0,0.01704]
[1756404674039,1.03551107,112330.0,112320.0,0.01704]
[1756404674239,1.51467167,112330.0,112320.0,0.01704]
[1756404674739,1.51467167,112330.0,112320.0,0.00052]
[1756404676043,1.77847167,112330.0,112320.0,0.00052]
[1756404676236,0.0890322,112310.0,112300.0,0.04257715]
[1756404676443,1.46382024,112310.0,112300.0,0.05909715]
[1756404676644,1.46382024,112310.0,112300.0,0.03435715]
[1756404677844,1.46382024,112310.0,112300.0,0.03535715]
[1756404678236,1.46382024,112310.0,112300.0,0.01883715]
[1756404679146,1.46382024,112310.0,112300.0,0.02083715]
[1756404679536,1.46378024,112310.0,112300.0,0.02083715]
[1756404679743,1.46378024,112310.0,112300.0,0.03735715]
[1756404679942,0.62686024,112310.0,112300.0,0.03735715]
[1756404680142,1.46378024,112310.0,112300.0,0.03735715]
[1756404681148,1.46378024,112310.0,112300.0,0.02083715]
[1756404681448,0.62686024,112310.0,112300.0,0.03735715]
[1756404681646,1.46374024,112310.0,112300.0,0.03735715]
[1756404684046,1.47265892,112310.0,112300.0,0.03735715]
[1756404684246,1.47265892,112310.0,112300.0,0.02083715]
[1756404684742,0.63577892,112310.0,112300.0,0.02083715]
[1756404685048,1.47257892,112310.0,112300.0,0.02083715]
[1756404685250,1.47253892,112310.0,112300.0,0.03735715]
[1756404685450,0.98449974,112310.0,112300.0,0.15113735]
[1756404685653,0.98449974,112310.0,112300.0,0.63029795]
[1756404687348,0.98449974,112310.0,112300.0,0.6124608]
[1756404687549,0.98449974,112310.0,112300.0,0.63083496]
[1756404689554,0.98449974,112310.0,112300.0,0.15167436]
[1756404689747,0.98449974,112310.0,112300.0,0.63083496]
[1756404689943,0.9934086,112310.0,112300.0,0.63083496]
[1756404690148,0.9934086,112310.0,112300.0,0.15167436]
[1756404690350,0.9934086,112310.0,112300.0,0.63083496]
[1756404691350,0.98449974,112310.0,112300.0,0.15167436]
[1756404691551,0.98449974,112310.0,112300.0,0.63083496]
[1756404692251,0.98449974,112310.0,112300.0,0.15167436]
[1756404692555,0.99330565,112310.0,112300.0,0.63083496]
[1756404693750,0.99330565,112310.0,112300.0,0.6124608]
[1756404693956,0.99330565,112310.0,112300.0,0.63075299]
[1756404696761,0.99330565,112310.0,112300.0,0.15159239]
[1756404696955,0.99330565,112310.0,112300.0,0.63075299]
[1756404697360,1.53303148,112310.0,112300.0,0.69131822]
[1756404698359,0.98449974,112310.0,112300.0,0.69131822]
[1756404698560,1.52422557,112310.0,112300.0,0.69131822]
[1756404698959,0.98449974,112310.0,112300.0,0.67302603]
[1756404699154,1.52422557,112310.0,112300.0,0.69125851]
[1756404699354,0.98449974,112310.0,112300.0,0.69125851]
[1756404699954,1.52422557,112310.0,112300.0,0.69125851]
[1756404700158,1.53310469,112310.0,112300.0,0.03775248]
[1756404700462,1.53310469,112310.0,112300.0,0.003]
[1756404703056,1.53310469,112310.0,112300.0,0.01838]
[1756404703251,1.4732094,112310.0,112300.0,0.003]
[1756404704064,1.4732094,112310.0,112300.0,0.01838]
[1756404704261,1.4732094,112310.0,112300.0,0.003]
[1756404704962,1.4732094,112310.0,112300.0,0.01838]
[1756404705262,1.4732094,112310.0,112300.0,0.003]
[1756404706463,1.4832094,112310.0,112300.0,0.003]
[1756404710266,1.4825294,112310.0,112300.0,0.01838]
[1756404710865,1.00269886,112310.0,112300.0,0.01838]
[1756404711263,1.4825294,112310.0,112300.0,0.01838]
[1756404711771,1.4825294,112310.0,112300.0,0.003]
[1756404713061,1.00269886,112310.0,112300.0,0.003]
[1756404713265,1.4825294,112310.0,112300.0,0.003]
[1756404715270,1.4825294,112310.0,112300.0,0.01838]
[1756404715568,1.4825294,112310.0,112300.0,0.003]
[1756404715768,1.4825294,112310.0,112300.0,0.01838]
[1756404715967,1.4825294,112310.0,112300.0,0.003]
[1756404717369,0.16657886,112310.0,112300.0,0.01838]
[1756404717568,1.00245886,112310.0,112300.0,0.04212]
[1756404717767,1.00245886,112310.0,112300.0,0.01838]
[1756404718365,0.16657886,112310.0,112300.0,0.01838]
[1756404718572,0.99357974,112310.0,112300.0,0.62877952]
[1756404718769,0.98357974,112310.0,112300.0,0.62877952]
[1756404719673,0.98353974,112310.0,112300.0,0.62877952]
[1756404721066,0.03903,112310.0,112300.0,0.62877952]
[1756404721271,0.03903,112310.0,112300.0,0.87877952]
[1756404721272,0.83576,112310.0,112300.0,0.87877952]
[1756404721472,0.8743,112310.0,112300.0,0.87877952]
[1756404722871,0.0154,112310.0,112300.0,0.87877952]
[1756404723071,0.85116,112310.0,112300.0,0.87877952]
[1756404724867,0.8743,112310.0,112300.0,0.87877952]
[1756404727971,0.85116,112310.0,112300.0,0.87877952]
[1756404728278,0.8743,112310.0,112300.0,0.87877952]
[1756404729877,0.87402,112310.0,112300.0,0.87877952]
[1756404730377,0.87402,112310.0,112300.0,0.39894898]
[1756404730574,0.9630522,112310.0,112300.0,0.35982898]
[1756404730774,1.44288274,112310.0,112300.0,0.10982898]
[1756404731275,0.1275722,112310.0,112300.0,0.62873952]
[1756404731478,0.87398,112310.0,112300.0,0.62873952]
[1756404731784,0.9630122,112310.0,112300.0,0.62873952]
[1756404731980,0.9630122,112310.0,112300.0,0.60614952]
[1756404734084,1.2130122,112310.0,112300.0,0.10982898]
[1756404734578,1.2130122,112310.0,112300.0,0.12631898]
[1756404734780,0.3775722,112310.0,112300.0,0.12631898]
[1756404734981,1.2129722,112310.0,112300.0,0.14890898]
[1756404735177,1.2129722,112310.0,112300.0,0.62873952]
[1756404735578,1.2129722,112310.0,112300.0,0.14890898]
[1756404735781,1.2129722,112310.0,112300.0,0.12631898]
[1756404736681,0.3775722,112310.0,112300.0,0.12631898]
[1756404736979,1.2129722,112310.0,112300.0,0.12631898]
[1756404737774,1.2129722,112310.0,112300.0,0.14890898]
[1756404737970,1.2129722,112310.0,112300.0,0.12631898]
[1756404739583,1.2129722,112310.0,112300.0,0.02078878]
[1756404739786,1.2129722,112310.0,112300.0,0.03727878]
[1756404740576,1.2129722,112310.0,112300.0,0.12631898]
[1756404741982,1.2129722,112310.0,112300.0,0.14890898]
[1756404742688,0.28854,112310.0,112300.0,0.14890898]
[1756404742987,1.2129323,112310.0,112300.0,0.14890898]
[1756404744782,1.2129323,112310.0,112300.0,0.62873952]
[1756404745178,1.2129323,112310.0,112300.0,0.60614952]
[1756404745381,1.44276284,112310.0,112300.0,0.02078878]
[1756404746191,1.44276284,112310.0,112300.0,0.10982898]
[1756404746386,0.60740284,112310.0,112300.0,0.10982898]
[1756404746688,1.44272284,112310.0,112300.0,0.12631898]
[1756404747784,1.44272284,112310.0,112300.0,0.10982898]
[1756404750090,0.9628923,112310.0,112300.0,0.10982898]
[1756404750290,1.44272284,112310.0,112300.0,0.10982898]
[1756404750488,0.9628923,112310.0,112300.0,0.10982898]
[1756404750683,1.44272284,112310.0,112300.0,0.10982898]
[1756404752293,1.44272284,112310.0,112300.0,0.12621898]
[1756404752993,0.9628923,112310.0,112300.0,0.10982898]
[1756404753196,1.44272284,112310.0,112300.0,0.12621898]
[1756404753387,1.50267524,112310.0,112300.0,0.66600192]
[1756404755005,0.66735524,112310.0,112300.0,0.66600192]
[1756404755307,1.50255524,112310.0,112300.0,0.66600192]
[1756404756409,0.66735524,112310.0,112300.0,0.66600192]
[1756404756710,1.50255524,112310.0,112300.0,0.66600192]
[1756404757105,0.03854,112310.0,112300.0,0.66600192]
[1756404757305,0.57832294,112310.0,112300.0,0.68937192]
[1756404757504,1.41348294,112310.0,112300.0,0.68937192]
[1756404757700,0.8737,112310.0,112300.0,0.68937192]
[1756404757896,1.41348294,112310.0,112300.0,0.68937192]
[1756404758700,0.03854,112310.0,112300.0,0.93937192]
[1756404758907,0.8737,112310.0,112300.0,0.93937192]
[1756404759104,0.8737,112310.0,112300.0,0.39958898]
[1756404759305,0.8737,112310.0,112300.0,0.87927091]
[1756404762712,0.8737,112310.0,112300.0,0.39958898]
[1756404762901,0.8737,112310.0,112300.0,0.87927091]
[1756404762902,0.9627323,112310.0,112300.0,0.87927091]
[1756404763108,0.8737,112310.0,112300.0,0.87927091]
[1756404769712,0.03854,112310.0,112300.0,0.87927091]
[1756404770011,0.87342,112310.0,112300.0,0.87927091]
[1756404773118,0.87342,112310.0,112300.0,0.62927091]
[1756404775913,0.87342,112310.0,112300.0,0.14958898]
[1756404775914,0.9624522,112310.0,112300.0,0.14958898]
[1756404776218,0.9624522,112310.0,112300.0,0.12621898]
[1756404777215,0.9624522,112310.0,112300.0,0.14958898]
[1756404780620,0.9624522,112310.0,112300.0,0.12621898]
[1756404780829,0.9624522,112310.0,112300.0,0.14978898]
[1756404781422,1.50219778,112310.0,112300.0,0.66596456]
[1756404784427,1.50219778,112310.0,112300.0,0.68953456]
[1756404785233,1.41280558,112310.0,112300.0,0.68953456]
[1756404785527,1.41276558,112310.0,112300.0,0.68953456]
[1756404785733,1.41272558,112310.0,112300.0,0.68953456]
[1756404786333,0.87298,112310.0,112300.0,0.68953456]
[1756404787432,0.87298,112310.0,112300.0,0.14978898]
[1756404787633,0.03854,112310.0,112300.0,0.68953456]
[1756404787932,1.41268558,112310.0,112300.0,0.68953456]
[1756404788727,0.03854,112310.0,112300.0,0.68953456]
[1756404788927,0.8729,112310.0,112300.0,0.68953456]
[1756404796738,0.03854,112310.0,112300.0,0.68953456]
[1756404796937,0.0154,112310.0,112300.0,0.68953456]
[1756404797140,0.03979,112310.0,112300.0,0.68953456]
[1756404797441,0.84948,112310.0,112300.0,0.68953456]
[1756404797938,0.84944,112310.0,112300.0,0.93953456]
[1756404800134,0.87383,112310.0,112300.0,0.93953456]
[1756404802244,0.87383,112310.0,112300.0,0.39978898]
[1756404802439,1.41357558,112310.0,112300.0,0.39978898]
[1756404802640,0.87383,112310.0,112300.0,0.93953456]
[1756404802945,0.87383,112310.0,112300.0,0.39978898]
[1756404803142,0.87383,112310.0,112300.0,0.93953456]
[1756404807342,1.50260788,112310.0,112300.0,0.68953456]
[1756404807648,1.50260788,112310.0,112300.0,0.66596456]
[1756404809241,1.50260788,112310.0,112300.0,0.68953456]
[1756404810043,1.50260788,112310.0,112300.0,0.66596456]
[1756404810943,0.9628623,112310.0,112300.0,0.66596456]
[1756404811152,1.50260788,112310.0,112300.0,0.66596456]
[1756404813552,0.9628623,112310.0,112300.0,0.66596456]
[1756404813752,1.50260788,112310.0,112300.0,0.66596456]
[1756404816152,1.50260788,112310.0,112300.0,0.10982898]
[1756404816348,1.75260788,112310.0,112300.0,0.003]
[1756404816754,0.91856788,112310.0,112300.0,0.0920402]
[1756404816956,1.75212788,112310.0,112300.0,0.11024068]
[1756404818458,2.01592788,112310.0,112300.0,0.11024068]
[1756404819856,2.01592788,112310.0,112300.0,0.02120048]
[1756404820854,0.6426223,112310.0,112300.0,0.12530068]
[1756404821049,1.75208788,112310.0,112300.0,0.12530068]
[1756404821249,0.3788223,112310.0,112300.0,0.12530068]
[1756404821454,1.2123423,112310.0,112300.0,0.12530068]
[1756404821655,1.75208788,112310.0,112300.0,0.12530068]
[1756404825452,1.75208788,112310.0,112300.0,0.11024068]
[1756404825655,1.2123423,112310.0,112300.0,0.12530068]
[1756404825855,1.75208788,112310.0,112300.0,0.12530068]
[1756404826263,1.75208788,112310.0,112300.0,0.11024068]
[1756404826865,1.75208788,112310.0,112300.0,0.12530068]
[1756404829666,0.91856788,112310.0,112300.0,0.12530068]
[1756404829867,1.75200788,112310.0,112300.0,0.12530068]
[1756404830170,2.01580788,112310.0,112300.0,0.12530068]
[1756404833070,1.2260223,112310.0,112300.0,0.12530068]
[1756404833263,1.76576788,112310.0,112300.0,0.12530068]
[1756404833670,1.76576788,112310.0,112300.0,0.1071002]
[1756404835078,1.50196788,112310.0,112300.0,0.1071002]
[1756404835275,1.50192788,112310.0,112300.0,0.1071002]
[1756404835480,0.66856788,112310.0,112300.0,0.1305802]
[1756404835679,1.50188788,112310.0,112300.0,0.67032578]
[1756404838274,1.50184788,112310.0,112300.0,0.67032578]
[1756404840183,1.50184788,112310.0,112300.0,0.1305802]
[1756404840384,1.50184788,112310.0,112300.0,0.67032578]
[1756404840685,1.50180788,112310.0,112300.0,0.67032578]
[1756404842386,0.9620623,112310.0,112300.0,0.67032578]
[1756404842688,1.50180788,112310.0,112300.0,0.67032578]
[1756404842986,0.9620623,112310.0,112300.0,0.67032578]
[1756404843187,1.50180788,112310.0,112300.0,0.67032578]
[1756404843377,0.66856788,112310.0,112300.0,0.67032578]
[1756404843578,1.41273558,112310.0,112300.0,0.67032578]
[1756404843983,0.87299,112310.0,112300.0,0.67032578]
[1756404844488,1.41273558,112310.0,112300.0,0.67032578]
[1756404845191,1.50176778,112310.0,112300.0,0.67032578]
[1756404847489,0.9620222,112310.0,112300.0,0.67032578]
[1756404847684,0.87299,112310.0,112300.0,0.67032578]
[1756404847884,1.50176778,112310.0,112300.0,0.67032578]
[1756404848392,1.50176778,112310.0,112300.0,0.1305802]
[1756404848689,1.50160778,112310.0,112300.0,0.67032578]
[1756404849292,0.66856778,112310.0,112300.0,0.67032578]
[1756404849486,1.50156778,112310.0,112300.0,0.67032578]
[1756404851792,1.50156778,112310.0,112300.0,0.1305802]
[1756404852091,1.50152778,112310.0,112300.0,0.67032578]
[1756404853497,1.50148778,112310.0,112300.0,0.67032578]
[1756404853692,1.50144778,112310.0,112300.0,0.67032578]
[1756404854396,0.9617022,112310.0,112300.0,0.67032578]
[1756404854694,1.50144778,112310.0,112300.0,0.67032578]
[1756404857092,1.50144778,112310.0,112300.0,0.1305802]
[1756404857298,1.50144778,112310.0,112300.0,0.67032578]
[1756404857701,1.50144778,112310.0,112300.0,0.1305802]
[1756404857999,1.50144778,112310.0,112300.0,0.1071002]
[1756404858297,1.50144778,112310.0,112300.0,0.64684578]
[1756404860899,1.50144778,112310.0,112300.0,0.67125578]
[1756404862989,0.9617022,112310.0,112300.0,0.67125578]
[1756404863293,1.50144778,112310.0,112300.0,0.67125578]
[1756404865001,1.50144778,112310.0,112300.0,0.58221558]
[1756404866703,1.50144778,112310.0,112300.0,0.01806]
[1756404866899,1.50144778,112310.0,112300.0,0.003]
[1756404867095,1.50144778,112310.0,112300.0,0.02097167]
[1756404867404,1.50144778,112310.0,112300.0,0.03598167]
[1756404868408,1.50108778,112310.0,112300.0,0.57572725]
[1756404870206,0.66856778,112310.0,112300.0,0.57572725]
[1756404870409,1.50096778,112310.0,112300.0,0.57572725]
[1756404873609,1.50088778,112310.0,112300.0,0.57572725]
[1756404874209,1.50084778,112310.0,112300.0,0.60059725]
[1756404874406,0.1288222,112310.0,112300.0,0.68963735]
[1756404874611,1.50084778,112310.0,112300.0,0.68963735]
[1756404875004,0.66856778,112310.0,112300.0,0.68963735]
[1756404875205,1.50080778,112310.0,112300.0,0.68963735]
[1756404875707,0.66856778,112310.0,112300.0,0.68963735]
[1756404876009,0.9610222,112310.0,112300.0,0.68963735]
[1756404876207,1.50076778,112310.0,112300.0,0.68963735]
[1756404876910,0.66856778,112310.0,112300.0,0.68963735]
[1756404877110,1.50076778,112310.0,112300.0,0.68963735]
[1756404877510,0.9610222,112310.0,112300.0,0.68963735]
[1756404878312,0.1288222,112310.0,112300.0,0.68963735]
[1756404878511,0.9609422,112310.0,112300.0,0.68963735]
[1756404879012,0.1288222,112310.0,112300.0,0.68963735]
[1756404879508,0.9609022,112310.0,112300.0,0.68963735]
[1756404879708,0.1288222,112310.0,112300.0,0.68963735]
[1756404880110,0.87187,112310.0,112300.0,0.68963735]
[1756404880305,0.0154,112310.0,112300.0,0.93963735]
[1756404880511,0.01537,112320.0,112310.0,0.1305622]
[1756404880817,1.82205163,112330.0,112320.0,0.1305543]
[1756404881110,1.87205163,112330.0,112320.0,1.22821086]
[1756404881311,2.70405163,112330.0,112320.0,1.22821086]
[1756404881509,2.79306803,112330.0,112320.0,1.22821086]
[1756404881904,2.70405163,112330.0,112320.0,1.22821086]
[1756404882312,2.79306793,112330.0,112320.0,1.22821086]
[1756404883311,2.70405163,112330.0,112320.0,1.22821086]
[1756404884615,1.87205163,112330.0,112320.0,1.22821086]
[1756404884807,2.70393163,112330.0,112320.0,1.22821086]
[1756404887418,2.70393163,112330.0,112320.0,0.68846528]
[1756404887612,1.87205163,112330.0,112320.0,0.68846528]
[1756404887917,2.70381163,112330.0,112320.0,1.22821086]
[1756404888618,2.70381163,112330.0,112320.0,0.1487197]
[1756404888816,2.70381163,112330.0,112320.0,0.68846528]
[1756404889619,3.31301585,112330.0,112320.0,0.1487197]
[1756404889815,3.17399945,112330.0,112320.0,0.68846528]
[1756404890217,3.17383945,112330.0,112320.0,0.68846528]
[1756404890521,2.63409387,112330.0,112320.0,0.68846528]
[1756404891122,3.17383945,112330.0,112320.0,0.68846528]
[1756404891823,2.63409387,112330.0,112320.0,0.68846528]
[1756404892916,1.80249387,112330.0,112320.0,1.22821086]
[1756404893123,2.63401387,112330.0,112320.0,1.22821086]
[1756404895726,2.63401387,112330.0,112320.0,0.1487197]
[1756404896025,2.63401387,112330.0,112320.0,1.22821086]
[1756404896026,2.63389387,112330.0,112320.0,1.22821086]
[1756404896218,1.80249387,112330.0,112320.0,1.22821086]
[1756404896419,0.01537,112330.0,112320.0,1.47821086]
[1756404896724,0.03859,112340.0,112330.0,0.1305464]
[1756404896925,0.59351,112340.0,112330.0,0.67029198]
[1756404897926,0.59551,112340.0,112330.0,0.67029198]
[1756404898628,0.59751,112340.0,112330.0,0.67029198]
[1756404900222,0.01937,112340.0,112330.0,0.92029198]
[1756404900427,0.004,112340.0,112330.0,1.46003756]
[1756404901129,0.004,112340.0,112330.0,0.92029198]
[1756404901928,0.01963,112340.0,112330.0,0.92029198]
[1756404902532,0.01763,112340.0,112330.0,0.92029198]
[1756404902832,0.01763,112340.0,112330.0,0.92229198]
[1756404903531,0.01563,112340.0,112330.0,0.92229198]
[1756404903729,0.01563,112340.0,112330.0,0.92329198]
[1756404904228,0.01563,112340.0,112330.0,0.92229198]
[1756404904432,0.01563,112340.0,112330.0,0.92129198]
[1756404906130,0.47113009,112350.0,112340.0,0.0890084]
[1756404906337,0.48676009,112350.0,112340.0,0.68688119]
[1756404907135,0.48776009,112350.0,112340.0,0.68688119]
[1756404910631,0.05944009,112350.0,112340.0,0.68688119]
[1756404910826,0.89016009,112350.0,112340.0,0.68688119]
[1756404911940,0.89016009,112350.0,112340.0,0.14713561]
[1756404912138,0.89016009,112350.0,112340.0,0.68688119]
[1756404913342,0.89016009,112350.0,112340.0,0.69573167]
[1756404914844,0.89016009,112350.0,112340.0,0.68688119]
[1756404922148,2.30865175,112350.0,112340.0,0.10722241]
[1756404922346,0.30944009,112350.0,112340.0,0.66289799]
[1756404922548,1.13972009,112350.0,112340.0,0.66289799]
[1756404922745,1.67946567,112350.0,112340.0,0.68727799]
[1756404922945,1.13972009,112350.0,112340.0,0.68727799]
[1756404923144,1.67946567,112350.0,112340.0,0.66289799]
[1756404923655,1.13972009,112350.0,112340.0,0.66289799]
[1756404923858,1.67946567,112350.0,112340.0,0.66289799]
[1756404924154,0.84918567,112350.0,112340.0,0.66289799]
[1756404924353,0.30944009,112350.0,112340.0,0.66289799]
[1756404924553,1.67938567,112350.0,112340.0,0.66289799]
[1756404926058,1.67938567,112350.0,112340.0,0.10722241]
[1756404926250,1.67938567,112350.0,112340.0,0.66289799]
[1756404927556,1.67930567,112350.0,112340.0,0.66289799]
[1756404927757,1.67930567,112350.0,112340.0,0.12315241]
[1756404927957,1.67930567,112350.0,112340.0,0.68727799]
[1756404928558,0.84918567,112350.0,112340.0,0.68727799]
[1756404928751,1.67926567,112350.0,112340.0,0.68727799]
[1756404929457,0.84918567,112350.0,112340.0,0.68727799]
[1756404929658,1.67926567,112350.0,112340.0,0.68727799]
[1756404932059,0.84918567,112350.0,112340.0,0.68727799]
[1756404932258,1.67914567,112350.0,112340.0,0.68727799]
[1756404933668,1.76814617,112350.0,112340.0,0.66289799]
[1756404936161,1.76814617,112350.0,112340.0,0.68570799]
[1756404936969,1.22840059,112350.0,112340.0,0.68570799]
[1756404937269,1.76814617,112350.0,112340.0,0.68570799]
[1756404938071,1.76814617,112350.0,112340.0,0.12315241]
[1756404938266,0.97840059,112350.0,112340.0,0.66289799]
[1756404938462,1.51814617,112350.0,112340.0,0.66289799]
[1756404939567,1.51814617,112350.0,112340.0,0.12315241]
[1756404939768,1.51814617,112350.0,112340.0,0.66289799]
[1756404940269,1.42894567,112350.0,112340.0,0.68570799]
[1756404940471,1.42894567,112350.0,112340.0,0.14596241]
[1756404940772,0.59918567,112350.0,112340.0,0.68570799]
[1756404940969,0.88916009,112350.0,112340.0,0.68570799]
[1756404941171,0.86612009,112350.0,112340.0,0.93570799]
[1756404941572,0.89076009,112350.0,112340.0,0.93570799]
[1756404942469,0.89072009,112350.0,112340.0,0.93570799]
[1756404948378,0.89072009,112350.0,112340.0,0.39596241]
[1756404948676,0.89072009,112350.0,112340.0,0.93570799]
[1756404949375,1.51946617,112350.0,112340.0,0.93570799]
[1756404949775,0.89072009,112350.0,112340.0,0.93570799]
[1756404950082,0.89052009,112350.0,112340.0,0.93570799]
[1756404951077,0.89052009,112350.0,112340.0,0.39596241]
[1756404951278,0.89052009,112350.0,112340.0,0.93570799]
[1756404952575,0.89052009,112350.0,112340.0,0.39596241]
[1756404952779,0.97952059,112350.0,112340.0,0.93570799]
[1756404953077,1.51926617,112350.0,112340.0,0.12315241]
[1756404953274,1.51926617,112350.0,112340.0,0.66290799]
[1756404953467,0.68978617,112350.0,112340.0,0.66290799]
[1756404953675,1.51914617,112350.0,112340.0,0.68571799]
[1756404954280,0.68978617,112350.0,112340.0,0.68571799]
[1756404954578,1.51914617,112350.0,112340.0,0.68571799]
[1756404956276,1.51914617,112350.0,112340.0,0.14597241]
[1756404956578,1.51914617,112350.0,112340.0,0.68571799]
[1756404957182,0.68978617,112350.0,112340.0,0.68571799]
[1756404957382,1.43010567,112350.0,112340.0,0.68571799]
[1756404957784,1.43010567,112350.0,112340.0,0.14597241]
[1756404957983,1.43006567,112350.0,112340.0,0.68571799]
[1756404958981,0.06104009,112350.0,112340.0,0.68571799]
[1756404959185,1.43002567,112350.0,112340.0,0.68571799]
[1756404960075,1.42998567,112350.0,112340.0,0.68571799]
[1756404960580,0.60078567,112350.0,112340.0,0.68571799]
[1756404961082,1.42994567,112350.0,112340.0,0.68571799]
[1756404961278,0.86556009,112350.0,112340.0,0.68571799]
[1756404961484,0.86556009,112350.0,112340.0,0.93571799]
[1756404963380,0.88935009,112350.0,112340.0,0.93571799]
[1756404965681,1.51809617,112350.0,112340.0,0.14597241]
[1756404965990,1.51809617,112350.0,112340.0,0.68571799]
[1756404967288,0.97835059,112350.0,112340.0,0.62538523]
[1756404969076,0.97835059,112350.0,112340.0,0.14597241]
[1756404969281,0.97835059,112350.0,112340.0,0.62538523]
[1756404971891,0.88935009,112350.0,112340.0,0.62538523]
[1756404972789,0.88935009,112350.0,112340.0,0.14597241]
[1756404972990,0.88935009,112350.0,112340.0,0.62538523]
[1756404973491,0.97835059,112350.0,112340.0,0.62538523]
[1756404973685,0.97835059,112350.0,112340.0,0.62579523]
[1756404974185,0.88935009,112350.0,112340.0,0.62579523]